fUSD/lending_fUSD_20250213
["ID","MTS","AMOUNT","RATE_DAILY","PERIOD"]
[352973018,1739469054884,-606.65,0.00013698,2]
[352973019,1739469054900,-935.22,0.00013698,2]
[352973020,1739469054916,-1677.66,0.00013698,2]
[352973021,1739469054933,-500.0,0.00013698,2]
[352973022,1739469054949,-2752.98,0.00013698,2]
[352973023,1739469054965,-1001.7,0.00013698,2]
[352973024,1739469054980,-500.0,0.00013698,2]
[352973025,1739469054996,-500.0,0.00013698,2]
[352973026,1739469055012,-500.0,0.00013698,2]
[352973027,1739469055028,-500.0,0.00013698,2]
[352973028,1739469055044,-1419.77,0.00013698,2]
[352973029,1739469055060,-1594.45,0.00013698,2]
[352973030,1739469055075,-500.0,0.00013698,2]
[352973031,1739469055091,-568.96,0.00013698,2]
[352973032,1739469055108,-500.0,0.00013698,2]
[352973033,1739469055124,-2135.30711221,0.00013698,2]
[352973034,1739469055989,-306.65274285,0.00013698,2]
[352973035,1739469057448,-153.0,0.00013428,2]
[352973036,1739469057460,-153.0,0.00013428,2]
[352973037,1739469057469,-778.04681894,0.00013698,2]
[352973038,1739469057479,-1561.88989401,0.00013698,2]
[352973039,1739469167976,800.0,0.00010268,2]
[352973040,1739469385480,1763.115455,0.0002,120]
[352973041,1739469429804,224.63,0.00010137,2]
[352973043,1739469600806,1955.82,0.00010431,2]
[352973044,1739469704211,219.55,0.00010268,2]
[352973045,1739469790589,10000.0,8.836e-05,2]
[352973081,1739470231413,-166.66666667,0.00010168,2]
[352973082,1739470231426,-150.0,0.00010193,2]
[352973083,1739470231436,-580.45,0.00010268,2]
[352973084,1739470231445,-800.0,0.00010268,2]
[352973085,1739470231455,-150.0,0.00010623,2]
[352973086,1739470231653,-150.0,0.00011185,2]
[352973087,1739470231673,-1000.0,0.00011549,2]
[352973088,1739470231683,-800.0,0.00011638,2]
[352973089,1739470231692,-800.0,0.00011638,2]
[352973090,1739470231702,-2751.0,0.00011655,2]
[352973091,1739470231711,-200.0,0.00011688,2]
[352973092,1739470231721,-681.25,0.00011734,2]
[352973093,1739470231730,-150.99,0.00011734,2]
[352973094,1739470231740,-1820.59,0.00012244,2]
[352973095,1739470231750,-194.14,0.00012333,2]
[352973097,1739470231759,-150.0,0.00012365,2]
[352973099,1739470231768,-9999.99,0.00012366,2]
[352973101,1739470231777,-999.99,0.00012366,2]
[352973103,1739470231787,-9999.99,0.00012366,2]
[352973105,1739470231798,-37998.90964852,0.00012367,2]
[352973107,1739470231812,-42531.30885287,0.00012367,2]
[352973112,1739470231857,-32879.53631967,0.00012367,2]
[352973115,1739470231867,-1996.3,0.00012367,2]
[352973116,1739470231876,-9999.99,0.00012367,2]
[352973118,1739470231886,-63737.44,0.00012367,2]
[352973120,1739470231898,-299.99,0.00012367,2]
[352973122,1739470231908,-150.0,0.00012378,2]
[352973124,1739470231917,-150.0,0.00012378,2]
[352973126,1739470231929,-274.03665868,0.00012378,2]
[352973128,1739470231938,-150.0,0.00012378,2]
[352973131,1739470231948,-191.65564496,0.00012378,2]
[352973133,1739470231957,-2000.0,0.00012385,2]
[352973135,1739470231968,-166.66666667,0.00012433,2]
[352973137,1739470231977,-219.53,0.00012466,2]
[352973139,1739470231987,-250.0,0.00012491,2]
[352973141,1739470231996,-1382.02,0.00012494,2]
[352973143,1739470232006,-28702.59574238,0.000125,2]
[352973146,1739470232016,-150.0,0.00012517,2]
[352973147,1739470232025,-2000.0,0.00012525,2]
[352973149,1739470232034,-174.78,0.00012533,2]
[352973151,1739470232043,-1000.0,0.00012673,2]
[352973153,1739470232052,-500.0,0.00012674,2]
[352973155,1739470232061,-1955.82,0.00012695,2]
[352973157,1739470232070,-17641.96243799,0.00012734,2]
[352973159,1739470232081,-6258.03756201,0.00012734,2]
[352973161,1739470232091,-166.06,0.00012884,2]
[352973163,1739470232100,-8124.76291635,0.00012908,2]
[352973165,1739470232109,-1000.0,0.00012993,2]
[352973167,1739470232118,-165.78354434,0.00012999,2]
[352973169,1739470232127,-155.26102501,0.00012999,2]
[352973171,1739470232137,-500.0,0.00012999,2]
[352973173,1739470232146,-500.0,0.00012999,2]
[352973175,1739470232156,-500.0,0.00012999,2]
[352973177,1739470232166,-500.0,0.00012999,2]
[352973180,1739470232177,-500.0,0.00012999,2]
[352973181,1739470232187,-200.0,0.00012999,2]
[352973183,1739470232196,-500.0,0.00012999,2]
[352973186,1739470232206,-500.0,0.00012999,2]
[352973187,1739470232215,-500.0,0.00012999,2]
[352973189,1739470232224,-500.0,0.00012999,2]
[352973191,1739470232234,-500.0,0.00012999,2]
[352973193,1739470232243,-500.0,0.00012999,2]
[352973195,1739470232252,-500.0,0.00012999,2]
[352973197,1739470232262,-500.0,0.00012999,2]
[352973199,1739470232272,-500.0,0.00012999,2]
[352973201,1739470232281,-500.0,0.00012999,2]
[352973203,1739470232290,-500.0,0.00012999,2]
[352973205,1739470232299,-590.14623563,0.00012999,2]
[352973207,1739470232308,-177.9104287,0.00012999,2]
[352973209,1739470232317,-550.0,0.00013,2]
[352973211,1739470232327,-60784.05769519,0.00013,2]
[352973213,1739470232337,-8124.76291635,0.00013003,2]
[352973215,1739470232346,-800.0,0.00013008,2]
[352973217,1739470232355,-800.0,0.00013008,2]
[352973219,1739470232364,-194.14,0.00013018,2]
[352973221,1739470232373,-500.0,0.00013096,2]
[352973223,1739470232383,-8124.76291635,0.00013098,2]
[352973225,1739470232393,-300.0,0.000131,4]
[352973228,1739470232403,-1000.0,0.00013185,2]
[352973230,1739470232412,-8124.76291635,0.00013193,2]
[352973231,1739470232422,-600.0,0.000132,4]
[352973234,1739470232433,-180.9,0.00013283,2]
[352973236,1739470232442,-8124.76291635,0.00013288,2]
[352973238,1739470232451,-900.0,0.000133,4]
[352973239,1739470232460,-153.0,0.00013394,2]
[352973241,1739470232470,-153.0,0.00013394,2]
[352973243,1739470232480,-1200.0,0.000134,4]
[352973245,1739470232489,-150.0,0.00013412,2]
[352973247,1739470232498,-150.0,0.00013432,2]
[352973250,1739470232508,-250.0,0.00013435,2]
[352973251,1739470232517,-150.0,0.00013436,2]
[352973254,1739470232528,-300.0,0.00013441,2]
[352973255,1739470232537,-150.0,0.00013442,2]
[352973257,1739470232546,-160.994,0.00013444,2]
[352973259,1739470232556,-3549.075,0.00013444,2]
[352973261,1739470232565,-500.0,0.00013452,2]
[352973263,1739470232574,-255.0,0.00013453,2]
[352973266,1739470232585,-151.27011009,0.00013462,2]
[352973268,1739470232595,-189.31841004,0.00013468,2]
[352973270,1739470232604,-150.0,0.00013471,2]
[352973271,1739470232614,-500.0,0.00013479,2]
[352973273,1739470232623,-150.0,0.00013483,2]
[352973275,1739470232633,-150.14749535,0.0001349,2]
[352973277,1739470232642,-1500.0,0.000135,4]
[352973279,1739470232651,-150.0,0.00013506,2]
[352973281,1739470232660,-150.0,0.00013522,2]
[352973283,1739470232671,-150.14749534,0.00013534,2]
[352973285,1739470232680,-150.0,0.00013538,2]
[352973288,1739470232690,-1000.0,0.00013542,2]
[352973289,1739470232700,-150.0,0.00013568,2]
[352973291,1739470232709,-150.0,0.0001357,2]
[352973293,1739470232718,-150.14749534,0.00013579,2]
[352973295,1739470232728,-30000.0,0.00013589,2]
[352973297,1739470232737,-150.0,0.0001359,2]
[352973299,1739470232747,-244.76677623,0.00013598,2]
[352973301,1739470232756,-167.43603108,0.00013598,2]
[352973303,1739470232765,-300.0,0.000136,4]
[352973305,1739470232774,-150.0,0.00013601,2]
[352973306,1739470232784,-150.0,0.00013605,2]
[352973308,1739470232794,-150.14749534,0.00013623,2]
[352973310,1739470232803,-500.0,0.00013629,2]
[352973312,1739470232813,-2000.0,0.00013629,2]
[352973314,1739470232826,-500.0,0.00013629,2]
[352973316,1739470232836,-200.0,0.00013629,2]
[352973318,1739470232845,-150.0,0.00013642,2]
[352973320,1739470232855,-150.0,0.00013666,2]
[352973322,1739470232866,-150.0,0.00013667,2]
[352973324,1739470232876,-150.14749534,0.00013668,2]
[352973326,1739470232885,-500.0,0.00013673,2]
[352973328,1739470232895,-150.0,0.00013678,2]
[352973330,1739470232906,-431.95362761,0.00013679,2]
[352973332,1739470232915,-244.76677619,0.00013682,2]
[352973334,1739470232925,-3087.7123932,0.00013688,2]
[352973337,1739470232935,-328.0378069,0.00013688,2]
[352973339,1739470232944,-8115.4227873,0.00013688,2]
[352973341,1739470232954,-202.73622945,0.00013688,2]
[352973342,1739470232963,-689.49227309,0.00013697,2]
[352973344,1739470232973,-1000.0,0.00013697,2]
[352973347,1739470232983,-1000.0,0.00013697,2]
[352973348,1739470232992,-693.9123177,0.00013697,2]
[352973350,1739470233002,-1030.0,0.00013698,2]
[352973353,1739470233012,-151.0,0.00013698,2]
[352973355,1739470233022,-151.0,0.00013698,2]
[352973356,1739470233032,-151.0,0.00013698,2]
[352973359,1739470233042,-151.0,0.00013698,2]
[352973360,1739470233051,-151.0,0.00013698,2]
[352973362,1739470233061,-151.0,0.00013698,2]
[352973365,1739470233071,-151.0,0.00013698,2]
[352973366,1739470233080,-151.0,0.00013698,2]
[352973368,1739470233089,-151.0,0.00013698,2]
[352973369,1739470233099,-151.0,0.00013698,2]
[352973370,1739470233108,-151.0,0.00013698,2]
[352973371,1739470233118,-183.493307,0.00013698,2]
[352973372,1739470233127,-151.0,0.00013698,2]
[352973373,1739470233137,-151.0,0.00013698,2]
[352973374,1739470233147,-151.0,0.00013698,2]
[352973375,1739470233158,-151.0,0.00013698,2]
[352973376,1739470233168,-151.0,0.00013698,2]
[352973377,1739470233180,-151.0,0.00013698,2]
[352973378,1739470233191,-151.0,0.00013698,2]
[352973379,1739470233202,-151.0,0.00013698,2]
[352973380,1739470233212,-151.0,0.00013698,2]
[352973381,1739470233222,-151.0,0.00013698,2]
[352973383,1739470233231,-151.0,0.00013698,2]
[352973385,1739470233240,-151.0,0.00013698,2]
[352973387,1739470233249,-151.0,0.00013698,2]
[352973389,1739470233259,-151.0,0.00013698,2]
[352973391,1739470233269,-151.0,0.00013698,2]
[352973393,1739470233279,-291.031458,0.00013698,2]
[352973395,1739470233288,-151.0,0.00013698,2]
[352973397,1739470233298,-151.0,0.00013698,2]
[352973399,1739470233308,-151.0,0.00013698,2]
[352973402,1739470233319,-151.0,0.00013698,2]
[352973404,1739470233328,-151.0,0.00013698,2]
[352973405,1739470233338,-240.520959,0.00013698,2]
[352973407,1739470233348,-445.088827,0.00013698,2]
[352973410,1739470233358,-445.088827,0.00013698,2]
[352973412,1739470233368,-445.088827,0.00013698,2]
[352973414,1739470233378,-445.088827,0.00013698,2]
[352973416,1739470233388,-445.088827,0.00013698,2]
[352973418,1739470233398,-445.088827,0.00013698,2]
[352973419,1739470233407,-445.088827,0.00013698,2]
[352973421,1739470233416,-445.088818,0.00013698,2]
[352973423,1739470233427,-151.0,0.00013698,2]
[352973425,1739470233437,-151.0,0.00013698,2]
[352973428,1739470233446,-151.0,0.00013698,2]
[352973430,1739470233457,-151.0,0.00013698,2]
[352973432,1739470233467,-151.0,0.00013698,2]
[352973433,1739470233476,-151.0,0.00013698,2]
[352973436,1739470233487,-151.0,0.00013698,2]
[352973437,1739470233496,-151.0,0.00013698,2]
[352973439,1739470233506,-151.0,0.00013698,2]
[352973441,1739470233517,-151.0,0.00013698,2]
[352973443,1739470233526,-151.0,0.00013698,2]
[352973445,1739470233536,-151.0,0.00013698,2]
[352973447,1739470233546,-151.0,0.00013698,2]
[352973449,1739470233556,-151.0,0.00013698,2]
[352973451,1739470233565,-151.0,0.00013698,2]
[352973453,1739470233575,-151.0,0.00013698,2]
[352973455,1739470233585,-151.0,0.00013698,2]
[352973457,1739470233595,-301.197554,0.00013698,2]
[352973459,1739470233604,-403.497944,0.00013698,2]
[352973461,1739470233614,-403.497944,0.00013698,2]
[352973463,1739470233624,-403.497944,0.00013698,2]
[352973465,1739470233634,-403.497944,0.00013698,2]
[352973467,1739470233643,-403.497944,0.00013698,2]
[352973469,1739470233652,-403.497944,0.00013698,2]
[352973471,1739470233662,-403.497944,0.00013698,2]
[352973473,1739470233672,-403.497944,0.00013698,2]
[352973475,1739470233681,-403.497944,0.00013698,2]
[352973477,1739470233691,-403.497944,0.00013698,2]
[352973479,1739470233700,-403.497944,0.00013698,2]
[352973481,1739470233710,-403.497944,0.00013698,2]
[352973483,1739470233719,-403.497944,0.00013698,2]
[352973485,1739470233729,-403.497944,0.00013698,2]
[352973487,1739470233738,-403.497944,0.00013698,2]
[352973489,1739470233748,-403.497944,0.00013698,2]
[352973491,1739470233758,-403.497944,0.00013698,2]
[352973493,1739470233768,-403.497944,0.00013698,2]
[352973495,1739470233777,-403.497944,0.00013698,2]
[352973497,1739470233787,-403.497945,0.00013698,2]
[352973499,1739470233797,-151.0,0.00013698,2]
[352973501,1739470233807,-151.0,0.00013698,2]
[352973504,1739470233822,-151.0,0.00013698,2]
[352973506,1739470233831,-151.0,0.00013698,2]
[352973508,1739470233842,-151.0,0.00013698,2]
[352973510,1739470233852,-151.0,0.00013698,2]
[352973512,1739470233863,-276.322076,0.00013698,2]
[352973513,1739470233872,-151.0,0.00013698,2]
[352973515,1739470233882,-151.0,0.00013698,2]
[352973518,1739470233895,-151.0,0.00013698,2]
[352973520,1739470233904,-151.0,0.00013698,2]
[352973521,1739470233914,-277.22296877,0.00013698,2]
[352973523,1739470233924,-436.69453901,0.00013698,2]
[352973526,1739470233934,-272.659298,0.00013698,2]
[352973528,1739470233943,-272.659298,0.00013698,2]
[352973530,1739470233953,-272.659298,0.00013698,2]
[352973532,1739470233962,-272.659298,0.00013698,2]
[352973534,1739470233971,-272.659298,0.00013698,2]
[352973536,1739470233981,-272.659298,0.00013698,2]
[352973538,1739470233991,-272.659298,0.00013698,2]
[352973540,1739470234001,-272.659298,0.00013698,2]
[352973542,1739470234016,-272.659298,0.00013698,2]
[352973544,1739470234025,-272.659298,0.00013698,2]
[352973546,1739470234035,-272.659298,0.00013698,2]
[352973548,1739470234045,-272.659298,0.00013698,2]
[352973550,1739470234054,-272.659298,0.00013698,2]
[352973552,1739470234064,-272.659298,0.00013698,2]
[352973554,1739470234073,-272.659298,0.00013698,2]
[352973556,1739470234083,-272.659298,0.00013698,2]
[352973573,1739470234239,-272.659298,0.00013698,2]
[352973575,1739470234250,-272.659298,0.00013698,2]
[352973578,1739470234260,-272.659298,0.00013698,2]
[352973580,1739470234269,-272.659298,0.00013698,2]
[352973582,1739470234279,-501.1776116,0.00013698,2]
[352973584,1739470234289,-151.0,0.00013698,2]
[352973586,1739470234299,-151.0,0.00013698,2]
[352973587,1739470234309,-151.0,0.00013698,2]
[352973590,1739470234319,-151.0,0.00013698,2]
[352973592,1739470234329,-151.0,0.00013698,2]
[352973594,1739470234340,-500.0,0.00013698,2]
[352973596,1739470234350,-500.0,0.00013698,2]
[352973598,1739470234360,-151.0,0.00013698,2]
[352973600,1739470234370,-151.0,0.00013698,2]
[352973602,1739470234379,-151.0,0.00013698,2]
[352973603,1739470234389,-151.0,0.00013698,2]
[352973606,1739470234399,-151.0,0.00013698,2]
[352973608,1739470234409,-151.0,0.00013698,2]
[352973609,1739470234419,-151.0,0.00013698,2]
[352973611,1739470234429,-151.0,0.00013698,2]
[352973612,1739470234438,-151.0,0.00013698,2]
[352973614,1739470234447,-151.0,0.00013698,2]
[352973616,1739470234457,-151.0,0.00013698,2]
[352973618,1739470234469,-151.0,0.00013698,2]
[352973620,1739470234479,-151.0,0.00013698,2]
[352973621,1739470234489,-151.0,0.00013698,2]
[352973623,1739470234498,-151.0,0.00013698,2]
[352973625,1739470234507,-151.0,0.00013698,2]
[352973626,1739470234516,-151.0,0.00013698,2]
[352973628,1739470234526,-233.75247,0.00013698,2]
[352973630,1739470234536,-233.75247,0.00013698,2]
[352973632,1739470234546,-233.75247,0.00013698,2]
[352973633,1739470234556,-151.0,0.00013698,2]
[352973635,1739470234565,-151.0,0.00013698,2]
[352973637,1739470234575,-151.0,0.00013698,2]
[352973638,1739470234584,-233.75247,0.00013698,2]
[352973640,1739470234594,-233.75247,0.00013698,2]
[352973642,1739470234604,-233.75247,0.00013698,2]
[352973644,1739470234613,-151.0,0.00013698,2]
[352973645,1739470234622,-151.0,0.00013698,2]
[352973647,1739470234632,-151.0,0.00013698,2]
[352973649,1739470234642,-151.0,0.00013698,2]
[352973651,1739470234651,-151.0,0.00013698,2]
[352973652,1739470234660,-151.0,0.00013698,2]
[352973654,1739470234669,-151.0,0.00013698,2]
[352973656,1739470234680,-151.0,0.00013698,2]
[352973658,1739470234689,-151.0,0.00013698,2]
[352973660,1739470234699,-500.0,0.00013698,2]
[352973661,1739470234708,-151.0,0.00013698,2]
[352973663,1739470234717,-151.0,0.00013698,2]
[352973665,1739470234727,-151.0,0.00013698,2]
[352973666,1739470234737,-500.0,0.00013698,2]
[352973668,1739470234746,-151.0,0.00013698,2]
[352973670,1739470234756,-151.0,0.00013698,2]
[352973671,1739470234766,-151.0,0.00013698,2]
[352973673,1739470234775,-151.0,0.00013698,2]
[352973675,1739470234785,-151.0,0.00013698,2]
[352973677,1739470234795,-151.0,0.00013698,2]
[352973679,1739470234805,-500.0,0.00013698,2]
[352973680,1739470234816,-500.0,0.00013698,2]
[352973682,1739470234827,-500.0,0.00013698,2]
[352973684,1739470234836,-200.0,0.00013698,2]
[352973686,1739470234845,-500.0,0.00013698,2]
[352973687,1739470234854,-1127.12,0.00013698,2]
[352973689,1739470234865,-576.75,0.00013698,2]
[352973691,1739470234875,-151.0,0.00013698,2]
[352973693,1739470234885,-151.0,0.00013698,2]
[352973695,1739470234895,-266.193713,0.00013698,2]
[352973696,1739470234905,-500.0,0.00013698,2]
[352973698,1739470234916,-503.8798412,0.00013698,2]
[352973700,1739470234927,-255.45921183,0.00013698,2]
[352973702,1739470234937,-500.0,0.00013698,2]
[352973704,1739470234947,-500.0,0.00013698,2]
[352973705,1739470234957,-500.0,0.00013698,2]
[352973707,1739470234968,-500.0,0.00013698,2]
[352973709,1739470234978,-500.0,0.00013698,2]
[352973711,1739470234988,-500.0,0.00013698,2]
[352973713,1739470235001,-500.0,0.00013698,2]
[352973715,1739470235011,-593.06856438,0.00013698,2]
[352973716,1739470235022,-500.0,0.00013698,2]
[352973718,1739470235032,-500.0,0.00013698,2]
[352973720,1739470235041,-152.244742,0.00013698,2]
[352973722,1739470235051,-500.0,0.00013698,2]
[352973724,1739470235060,-500.0,0.00013698,2]
[352973725,1739470235070,-500.0,0.00013698,2]
[352973727,1739470235080,-500.0,0.00013698,2]
[352973729,1739470235089,-151.0,0.00013698,2]
[352973731,1739470235099,-151.0,0.00013698,2]
[352973733,1739470235109,-1460.73,0.00013698,2]
[352973734,1739470235118,-151.0,0.00013698,2]
[352973736,1739470235127,-500.0,0.00013698,2]
[352973738,1739470235136,-497.90085049,0.00013698,2]
[352973743,1739470235181,-462.5314175,0.00013698,2]
[352973749,1739470235236,-263.88773201,0.00013698,2]
[352973750,1739470235246,-500.0,0.00013698,2]
[352973752,1739470235257,-1156.74,0.00013698,2]
[352973754,1739470235267,-651.17,0.00013698,2]
[352973756,1739470235277,-500.0,0.00013698,2]
[352973758,1739470235286,-500.0,0.00013698,2]
[352973760,1739470235296,-500.0,0.00013698,2]
[352973762,1739470235306,-500.0,0.00013698,2]
[352973763,1739470235316,-500.0,0.00013698,2]
[352973765,1739470235325,-500.0,0.00013698,2]
[352973767,1739470235335,-804.94,0.00013698,2]
[352973769,1739470235344,-500.0,0.00013698,2]
[352973771,1739470235354,-1514.51,0.00013698,2]
[352973772,1739470235363,-151.0,0.00013698,2]
[352973774,1739470235372,-500.0,0.00013698,2]
[352973776,1739470235384,-164.297896,0.00013698,2]
[352973778,1739470235393,-500.0,0.00013698,2]
[352973780,1739470235403,-151.0,0.00013698,2]
[352973782,1739470235413,-508.60816115,0.00013698,2]
[352973783,1739470235423,-151.0,0.00013698,2]
[352973785,1739470235433,-151.0,0.00013698,2]
[352973787,1739470235443,-500.0,0.00013698,2]
[352973789,1739470235452,-500.0,0.00013698,2]
[352973791,1739470235462,-708.33,0.00013698,2]
[352973793,1739470235472,-500.0,0.00013698,2]
[352973794,1739470235481,-1215.61,0.00013698,2]
[352973796,1739470235491,-500.0,0.00013698,2]
[352973798,1739470235501,-500.0,0.00013698,2]
[352973800,1739470235510,-982.56,0.00013698,2]
[352973802,1739470235519,-500.0,0.00013698,2]
[352973804,1739470235529,-500.0,0.00013698,2]
[352973805,1739470235538,-958.94,0.00013698,2]
[352973807,1739470235547,-500.0,0.00013698,2]
[352973809,1739470235557,-774.04,0.00013698,2]
[352973811,1739470235566,-500.0,0.00013698,2]
[352973813,1739470235575,-581.38,0.00013698,2]
[352973815,1739470235586,-500.0,0.00013698,2]
[352973816,1739470235596,-500.0,0.00013698,2]
[352973818,1739470235605,-500.0,0.00013698,2]
[352973820,1739470235614,-151.0,0.00013698,2]
[352973822,1739470235623,-151.0,0.00013698,2]
[352973824,1739470235633,-959.96,0.00013698,2]
[352973825,1739470235642,-500.0,0.00013698,2]
[352973827,1739470235651,-575.11,0.00013698,2]
[352973829,1739470235660,-500.0,0.00013698,2]
[352973831,1739470235672,-500.0,0.00013698,2]
[352973833,1739470235683,-683.62,0.00013698,2]
[352973835,1739470235692,-500.0,0.00013698,2]
[352973836,1739470235702,-1279.59,0.00013698,2]
[352973838,1739470235713,-505.9363508,0.00013698,2]
[352973840,1739470235722,-500.0,0.00013698,2]
[352973842,1739470235731,-607.20885459,0.00013698,2]
[352973844,1739470235740,-500.0,0.00013698,2]
[352973846,1739470235749,-504.18718648,0.00013698,2]
[352973847,1739470235759,-801.38,0.00013698,2]
[352973849,1739470235768,-1383.75,0.00013698,2]
[352973851,1739470235777,-1381.78,0.00013698,2]
[352973853,1739470235787,-500.0,0.00013698,2]
[352973855,1739470235796,-500.0,0.00013698,2]
[352973857,1739470235805,-927.26,0.00013698,2]
[352973859,1739470235815,-500.0,0.00013698,2]
[352973861,1739470235828,-917.54,0.00013698,2]
[352973862,1739470235836,-785.53,0.00013698,2]
[352973863,1739470235845,-500.0,0.00013698,2]
[352973864,1739470235855,-151.0,0.00013698,2]
[352973865,1739470235865,-151.0,0.00013698,2]
[352973866,1739470235874,-617.68,0.00013698,2]
[352973867,1739470235883,-500.0,0.00013698,2]
[352973868,1739470235893,-151.0,0.00013698,2]
[352973869,1739470235902,-512.48115227,0.00013698,2]
[352973870,1739470235912,-500.0,0.00013698,2]
[352973871,1739470235921,-500.0,0.00013698,2]
[352973872,1739470235931,-500.0,0.00013698,2]
[352973873,1739470235940,-500.0,0.00013698,2]
[352973874,1739470235949,-959.38,0.00013698,2]
[352973875,1739470235958,-500.0,0.00013698,2]
[352973876,1739470235966,-500.0,0.00013698,2]
[352973877,1739470235975,-500.0,0.00013698,2]
[352973878,1739470235985,-621.23293064,0.00013698,2]
[352973879,1739470235994,-500.0,0.00013698,2]
[352973880,1739470236003,-500.0,0.00013698,2]
[352973882,1739470236014,-500.0,0.00013698,2]
[352973883,1739470236023,-500.0,0.00013698,2]
[352973885,1739470236032,-500.0,0.00013698,2]
[352973887,1739470236041,-500.0,0.00013698,2]
[352973889,1739470236051,-500.0,0.00013698,2]
[352973891,1739470236060,-594.366065,0.00013698,2]
[352973893,1739470236070,-500.0,0.00013698,2]
[352973895,1739470236080,-505.0800314,0.00013698,2]
[352973897,1739470236089,-1487.05,0.00013698,2]
[352973899,1739470236098,-500.0,0.00013698,2]
[352973901,1739470236107,-486.81666558,0.00013698,2]
[352973903,1739470236117,-500.0,0.00013698,2]
[352973905,1739470236126,-500.0,0.00013698,2]
[352973907,1739470236135,-500.0,0.00013698,2]
[352973909,1739470236144,-500.0,0.00013698,2]
[352973911,1739470236154,-1001.49,0.00013698,2]
[352973913,1739470236163,-1404.0,0.00013698,2]
[352973915,1739470236174,-500.0,0.00013698,2]
[352973917,1739470236184,-500.0,0.00013698,2]
[352973919,1739470236193,-518.72,0.00013698,2]
[352973921,1739470236203,-500.0,0.00013698,2]
[352973923,1739470236212,-500.0,0.00013698,2]
[352973925,1739470236221,-500.0,0.00013698,2]
[352973927,1739470236230,-500.0,0.00013698,2]
[352973929,1739470236240,-500.0,0.00013698,2]
[352973931,1739470236249,-500.0,0.00013698,2]
[352973933,1739470236259,-500.0,0.00013698,2]
[352973935,1739470236268,-500.0,0.00013698,2]
[352973937,1739470236277,-500.0,0.00013698,2]
[352973939,1739470236286,-500.0,0.00013698,2]
[352973941,1739470236296,-500.0,0.00013698,2]
[352973943,1739470236305,-500.0,0.00013698,2]
[352973945,1739470236318,-500.0,0.00013698,2]
[352973947,1739470236327,-500.0,0.00013698,2]
[352973949,1739470236337,-500.0,0.00013698,2]
[352973951,1739470236346,-1685.42,0.00013698,2]
[352973953,1739470236356,-500.0,0.00013698,2]
[352973955,1739470236366,-500.0,0.00013698,2]
[352973957,1739470236376,-500.0,0.00013698,2]
[352973959,1739470236385,-372.98651735,0.00013698,2]
[352973961,1739470236394,-637.97,0.00013698,2]
[352973963,1739470236403,-631.78327099,0.00013698,2]
[352973965,1739470236413,-888.45,0.00013698,2]
[352973967,1739470236422,-254.286352,0.00013698,2]
[352973969,1739470236432,-254.286352,0.00013698,2]
[352973971,1739470236441,-254.286352,0.00013698,2]
[352973973,1739470236451,-500.0,0.00013698,2]
[352973975,1739470236460,-254.286352,0.00013698,2]
[352973977,1739470236469,-254.286352,0.00013698,2]